[Event "Late-Titled-Tuesday-Blitz-May-28-2024"]
[Site "Chess.com"]
[Date "2024.05.28"]
[Round "11"]
[White "swayamsm"]
[Black "HajiyevKanan"]
[Result "1-0"]
[WhiteElo "2577"]
[BlackElo "2469"]
[TimeControl "180+1"]
[EndTime "16:05:31 PDT"]
[Termination "swayamsm won on time"]

1. d4 {[%clk 0:03:00.9]} 1... a6 {[%clk 0:03:00.9]} 2. e4 {[%clk 0:02:56.7]}
2... c6 {[%clk 0:03:01.8]} 3. a4 {[%clk 0:02:55.2]} 3... d5 {[%clk 0:03:02.7]}
4. e5 {[%clk 0:02:54.3]} 4... Bf5 {[%clk 0:03:02.8]} 5. a5 {[%clk 0:02:53.7]}
5... e6 {[%clk 0:03:02.9]} 6. h4 {[%clk 0:02:52.8]} 6... Bb4+ {[%clk 0:03:02.7]}
7. c3 {[%clk 0:02:51.6]} 7... Bxa5 {[%clk 0:03:00.7]} 8. Nd2 {[%clk 0:02:48.3]}
8... h5 {[%clk 0:02:59]} 9. Be2 {[%clk 0:02:47]} 9... Bc7 {[%clk 0:02:49.9]} 10.
Nb3 {[%clk 0:02:42.1]} 10... Nd7 {[%clk 0:02:43.2]} 11. Bg5 {[%clk 0:02:35]}
11... f6 {[%clk 0:02:31.5]} 12. exf6 {[%clk 0:02:33.2]} 12... Ngxf6 {[%clk
0:02:31.8]} 13. Nf3 {[%clk 0:02:26.8]} 13... O-O {[%clk 0:02:27.1]} 14. Nfd2
{[%clk 0:02:17.7]} 14... Bg4 {[%clk 0:02:18.5]} 15. Bxg4 {[%clk 0:02:11.7]}
15... hxg4 {[%clk 0:02:18]} 16. Qe2 {[%clk 0:02:10.8]} 16... e5 {[%clk
0:02:16.9]} 17. dxe5 {[%clk 0:02:07.5]} 17... Bxe5 {[%clk 0:02:08.3]} 18. O-O
{[%clk 0:01:59.4]} 18... Qc7 {[%clk 0:02:04.5]} 19. Qd3 {[%clk 0:01:45.8]} 19...
Rf7 {[%clk 0:01:59.6]} 20. Rae1 {[%clk 0:01:36.1]} 20... Bh2+ {[%clk 0:01:57.1]}
21. Kh1 {[%clk 0:01:34.7]} 21... Bf4 {[%clk 0:01:58]} 22. Nd4 {[%clk 0:01:29.6]}
22... Bxd2 {[%clk 0:01:56]} 23. Bxd2 {[%clk 0:01:23.8]} 23... Ne4 {[%clk
0:01:53.9]} 24. Rxe4 {[%clk 0:01:13.3]} 24... Nc5 {[%clk 0:01:51.9]} 25. Ne6
{[%clk 0:00:59.9]} 25... Nxd3 {[%clk 0:00:58]} 26. Nxc7 {[%clk 0:00:57.7]} 26...
Rc8 {[%clk 0:00:30.4]} 27. Re8+ {[%clk 0:00:53.8]} 27... Rxe8 {[%clk 0:00:28.7]}
28. Nxe8 {[%clk 0:00:54.7]} 28... Nxf2+ {[%clk 0:00:25]} 29. Kg1 {[%clk
0:00:54.9]} 29... g3 {[%clk 0:00:23.5]} 30. Nd6 {[%clk 0:00:55.2]} 30... Rf8
{[%clk 0:00:13.6]} 31. Be3 {[%clk 0:00:51.6]} 31... b5 {[%clk 0:00:09.9]} 32.
Bxf2 {[%clk 0:00:50.9]} 32... gxf2+ {[%clk 0:00:10.8]} 33. Rxf2 {[%clk
0:00:51.4]} 33... Rd8 {[%clk 0:00:11.6]} 34. Nf7 {[%clk 0:00:50.3]} 34... Re8
{[%clk 0:00:07.2]} 35. Ng5 {[%clk 0:00:50.4]} 35... Re1+ {[%clk 0:00:07]} 36.
Kh2 {[%clk 0:00:49.9]} 36... a5 {[%clk 0:00:07.6]} 37. Nf3 {[%clk 0:00:47.2]}
37... Re4 {[%clk 0:00:07.6]} 38. Kg3 {[%clk 0:00:46]} 38... a4 {[%clk 0:00:08]}
39. Nd4 {[%clk 0:00:46.3]} 39... Re3+ {[%clk 0:00:08.4]} 40. Rf3 {[%clk
0:00:44.2]} 40... Re4 {[%clk 0:00:04.3]} 41. Nxc6 {[%clk 0:00:44.2]} 41... Rc4
{[%clk 0:00:03]} 42. Ne7+ {[%clk 0:00:43.7]} 42... Kh7 {[%clk 0:00:02.6]} 43.
Rf5 {[%clk 0:00:43.1]} 43... g6 {[%clk 0:00:03]} 44. Rxd5 {[%clk 0:00:43.5]}
44... b4 {[%clk 0:00:02.6]} 45. Rd7 {[%clk 0:00:40.2]} 45... Kh6 {[%clk
0:00:01.8]} 46. Ng8+ {[%clk 0:00:39.4]} 1-0

[Event "Late-Titled-Tuesday-Blitz-May-28-2024"]
[Site "Chess.com"]
[Date "2024.05.28"]
[Round "11"]
[White "maracayo"]
[Black "ChEsper99"]
[Result "1-0"]
[WhiteElo "2414"]
[BlackElo "2245"]
[TimeControl "180+1"]
[EndTime "16:05:33 PDT"]
[Termination "maracayo won by resignation"]

1. e4 {[%clk 0:03:00.9]} 1... c6 {[%clk 0:02:54.4]} 2. Nf3 {[%clk 0:03:00.6]}
2... d5 {[%clk 0:02:54.6]} 3. d3 {[%clk 0:03:01]} 3... dxe4 {[%clk 0:02:49.6]}
4. dxe4 {[%clk 0:03:01.6]} 4... Qxd1+ {[%clk 0:02:50]} 5. Kxd1 {[%clk
0:03:01.5]} 5... Bg4 {[%clk 0:02:50]} 6. Bd3 {[%clk 0:03:01.2]} 6... Bxf3+
{[%clk 0:02:48.7]} 7. gxf3 {[%clk 0:03:00.5]} 7... e5 {[%clk 0:02:45.7]} 8. Ke2
{[%clk 0:03:00]} 8... Nd7 {[%clk 0:02:44]} 9. Be3 {[%clk 0:02:59.8]} 9... Bc5
{[%clk 0:02:43.3]} 10. Nd2 {[%clk 0:03:00]} 10... O-O-O {[%clk 0:02:28.9]} 11.
Rhb1 {[%clk 0:02:44.7]} 11... Ne7 {[%clk 0:02:22.6]} 12. b4 {[%clk 0:02:43.5]}
12... Bxe3 {[%clk 0:02:22.8]} 13. fxe3 {[%clk 0:02:43.6]} 13... g6 {[%clk
0:02:15.7]} 14. Nc4 {[%clk 0:02:41.1]} 14... Kc7 {[%clk 0:02:13.1]} 15. a4
{[%clk 0:02:40.3]} 15... f5 {[%clk 0:02:04.2]} 16. b5 {[%clk 0:02:27.5]} 16...
fxe4 {[%clk 0:01:47.3]} 17. fxe4 {[%clk 0:02:16.2]} 17... g5 {[%clk 0:01:05.5]}
18. a5 {[%clk 0:02:11.6]} 18... cxb5 {[%clk 0:00:58.5]} 19. Rxb5 {[%clk
0:02:09.8]} 19... a6 {[%clk 0:00:47.4]} 20. Rb2 {[%clk 0:01:54.4]} 20... Nc6
{[%clk 0:00:47.4]} 21. Rab1 {[%clk 0:01:51.9]} 21... Nc5 {[%clk 0:00:47.8]} 22.
Rb6 {[%clk 0:01:35.7]} 22... Rb8 {[%clk 0:00:42.2]} 23. Rg1 {[%clk 0:01:31.8]}
23... h6 {[%clk 0:00:40.3]} 24. h4 {[%clk 0:01:25.4]} 24... Rhg8 {[%clk
0:00:38.1]} 25. Kd2 {[%clk 0:01:05.1]} 25... gxh4 {[%clk 0:00:25.6]} 26. Rh1
{[%clk 0:01:03.7]} 26... Rbd8 {[%clk 0:00:20.7]} 27. Rxh4 {[%clk 0:00:55.7]}
27... Nxa5 {[%clk 0:00:20.8]} 28. Rb4 {[%clk 0:00:38.2]} 28... Nc6 {[%clk
0:00:19.8]} 29. Rb1 {[%clk 0:00:33.4]} 29... Rg6 {[%clk 0:00:18.9]} 30. Kc3
{[%clk 0:00:29.4]} 30... b5 {[%clk 0:00:18.1]} 31. Nb2 {[%clk 0:00:22.4]} 31...
Rdd6 {[%clk 0:00:06.9]} 32. Rf1 {[%clk 0:00:20.7]} 32... Rdf6 {[%clk 0:00:06.6]}
33. Rxf6 {[%clk 0:00:19.5]} 33... Rxf6 {[%clk 0:00:07.5]} 34. Rh5 {[%clk
0:00:19.5]} 34... Kb6 {[%clk 0:00:07.1]} 35. Nd1 {[%clk 0:00:18.5]} 35... a5
{[%clk 0:00:07.5]} 36. Kb2 {[%clk 0:00:17.3]} 36... a4 {[%clk 0:00:07.5]} 37.
Nc3 {[%clk 0:00:17.2]} 37... b4 {[%clk 0:00:06.9]} 38. Nd5+ {[%clk 0:00:17.3]}
1-0

[Event "Late-Titled-Tuesday-Blitz-May-28-2024"]
[Site "Chess.com"]
[Date "2024.05.28"]
[Round "11"]
[White "NMJeevanK"]
[Black "RandomNoob04"]
[Result "0-1"]
[WhiteElo "2694"]
[BlackElo "2792"]
[TimeControl "180+1"]
[EndTime "16:05:35 PDT"]
[Termination "RandomNoob04 won by checkmate"]

1. e4 {[%clk 0:03:00.9]} 1... d5 {[%clk 0:03:00.5]} 2. exd5 {[%clk 0:03:01.1]}
2... Qxd5 {[%clk 0:03:01.4]} 3. Nc3 {[%clk 0:03:01.2]} 3... Qa5 {[%clk
0:03:02.1]} 4. Nf3 {[%clk 0:03:01.9]} 4... Nf6 {[%clk 0:03:02.6]} 5. d4 {[%clk
0:03:02.3]} 5... Bf5 {[%clk 0:03:03.1]} 6. Bc4 {[%clk 0:03:02.5]} 6... e6 {[%clk
0:03:03.7]} 7. Bd2 {[%clk 0:03:02.3]} 7... Bb4 {[%clk 0:03:04.6]} 8. a3 {[%clk
0:03:00.4]} 8... Bxc3 {[%clk 0:03:05.2]} 9. Bxc3 {[%clk 0:03:01.3]} 9... Qb6
{[%clk 0:03:05.7]} 10. O-O {[%clk 0:02:57.9]} 10... Nc6 {[%clk 0:03:06]} 11. d5
{[%clk 0:02:53.2]} 11... O-O-O {[%clk 0:03:05.9]} 12. Nd4 {[%clk 0:02:09.8]}
12... Nxd5 {[%clk 0:03:05]} 13. Nxf5 {[%clk 0:02:10.1]} 13... Nxc3 {[%clk
0:03:00.1]} 14. Qf3 {[%clk 0:02:10.4]} 14... exf5 {[%clk 0:02:36.4]} 15. Qxf5+
{[%clk 0:02:08.7]} 15... Kb8 {[%clk 0:02:36.1]} 16. bxc3 {[%clk 0:02:09]} 16...
Qa5 {[%clk 0:01:49.5]} 17. Qh3 {[%clk 0:02:01.6]} 17... Ne5 {[%clk 0:01:46.4]}
18. Bb3 {[%clk 0:01:57.2]} 18... Rd6 {[%clk 0:01:40.5]} 19. Rfe1 {[%clk
0:01:54.8]} 19... f6 {[%clk 0:01:39.9]} 20. Rab1 {[%clk 0:01:52.3]} 20... a6
{[%clk 0:01:35.6]} 21. a4 {[%clk 0:01:48.8]} 21... h6 {[%clk 0:01:31.6]} 22. Qe3
{[%clk 0:01:29.9]} 22... Rhd8 {[%clk 0:01:29.7]} 23. Qg3 {[%clk 0:01:23.4]}
23... g5 {[%clk 0:01:28.9]} 24. Qh3 {[%clk 0:01:22.8]} 24... Qc5 {[%clk
0:01:23.5]} 25. Rf1 {[%clk 0:01:12.2]} 25... Rd2 {[%clk 0:01:14.3]} 26. Rbe1
{[%clk 0:01:08.4]} 26... h5 {[%clk 0:00:46.4]} 27. Qf5 {[%clk 0:01:08.1]} 27...
R8d6 {[%clk 0:00:37.8]} 28. Qh7 {[%clk 0:00:55.5]} 28... Ng4 {[%clk 0:00:33.3]}
29. Qxh5 {[%clk 0:00:38.9]} 29... Nxf2 {[%clk 0:00:30.8]} 30. Qe8+ {[%clk
0:00:37.3]} 30... Ka7 {[%clk 0:00:30.6]} 31. Qe3 {[%clk 0:00:37.8]} 31... Qxe3
{[%clk 0:00:23.5]} 32. Rxe3 {[%clk 0:00:38.7]} 32... Ng4 {[%clk 0:00:23.2]} 33.
Ref3 {[%clk 0:00:36.8]} 33... Rd1 {[%clk 0:00:14.7]} 34. h3 {[%clk 0:00:36.9]}
34... Rxf1+ {[%clk 0:00:14.2]} 35. Kxf1 {[%clk 0:00:36.8]} 35... Nh2+ {[%clk
0:00:14.4]} 36. Kf2 {[%clk 0:00:36.3]} 36... Nxf3 {[%clk 0:00:15.3]} 37. Kxf3
{[%clk 0:00:37.2]} 37... Kb6 {[%clk 0:00:14.9]} 38. Kg4 {[%clk 0:00:36.8]} 38...
Kc5 {[%clk 0:00:15.6]} 39. Kf5 {[%clk 0:00:37.2]} 39... c6 {[%clk 0:00:14.5]}
40. g4 {[%clk 0:00:34.5]} 40... b5 {[%clk 0:00:14.4]} 41. axb5 {[%clk
0:00:35.4]} 41... cxb5 {[%clk 0:00:14.9]} 42. Be6 {[%clk 0:00:35.2]} 42... a5
{[%clk 0:00:15.1]} 43. Kxf6 {[%clk 0:00:35.3]} 43... a4 {[%clk 0:00:15.7]} 44.
Ke5 {[%clk 0:00:33.6]} 44... Rxe6+ {[%clk 0:00:16.3]} 45. Kxe6 {[%clk
0:00:34.5]} 45... a3 {[%clk 0:00:17]} 46. h4 {[%clk 0:00:35]} 46... a2 {[%clk
0:00:16]} 47. hxg5 {[%clk 0:00:34.5]} 47... a1=Q {[%clk 0:00:16.9]} 48. Kf6
{[%clk 0:00:35.3]} 48... Qxc3+ {[%clk 0:00:17.2]} 49. Kf7 {[%clk 0:00:35.9]}
49... Qxc2 {[%clk 0:00:16.8]} 50. g6 {[%clk 0:00:36.8]} 50... Qf2+ {[%clk
0:00:17.1]} 51. Kg8 {[%clk 0:00:37.1]} 51... Qg3 {[%clk 0:00:17.1]} 52. Kg7
{[%clk 0:00:36]} 52... Qxg4 {[%clk 0:00:17.5]} 53. Kh8 {[%clk 0:00:36.9]} 53...
b4 {[%clk 0:00:17.7]} 54. g7 {[%clk 0:00:37.3]} 54... b3 {[%clk 0:00:18]} 55.
Kh7 {[%clk 0:00:36.5]} 55... b2 {[%clk 0:00:18]} 56. Kh8 {[%clk 0:00:37.4]}
56... b1=Q {[%clk 0:00:17.8]} 57. Kg8 {[%clk 0:00:37.7]} 57... Qb7 {[%clk
0:00:16.4]} 58. Kh8 {[%clk 0:00:38.6]} 58... Qgxg7# {[%clk 0:00:16.2]} 0-1

[Event "Late-Titled-Tuesday-Blitz-May-28-2024"]
[Site "Chess.com"]
[Date "2024.05.28"]
[Round "11"]
[White "ckgchess"]
[Black "cassoulet"]
[Result "0-1"]
[WhiteElo "2867"]
[BlackElo "2739"]
[TimeControl "180+1"]
[EndTime "16:05:36 PDT"]
[Termination "cassoulet won by resignation"]

1. e4 {[%clk 0:03:00.9]} 1... c5 {[%clk 0:03:00]} 2. c3 {[%clk 0:03:01]} 2... e5
{[%clk 0:02:58.1]} 3. Nf3 {[%clk 0:03:01.1]} 3... Nc6 {[%clk 0:02:58.4]} 4. Bc4
{[%clk 0:03:01.2]} 4... Nf6 {[%clk 0:02:57.6]} 5. Ng5 {[%clk 0:03:01.4]} 5... d5
{[%clk 0:02:57.4]} 6. exd5 {[%clk 0:03:01.1]} 6... Nxd5 {[%clk 0:02:57.8]} 7. d4
{[%clk 0:03:01.8]} 7... cxd4 {[%clk 0:02:56.4]} 8. Qh5 {[%clk 0:02:50.3]} 8...
g6 {[%clk 0:02:47.7]} 9. Qf3 {[%clk 0:02:50]} 9... Be6 {[%clk 0:02:46.4]} 10.
Nxe6 {[%clk 0:02:50.4]} 10... fxe6 {[%clk 0:02:45.7]} 11. O-O {[%clk 0:02:51.2]}
11... Bg7 {[%clk 0:02:39.5]} 12. Nd2 {[%clk 0:02:49.9]} 12... Rf8 {[%clk
0:02:38.7]} 13. Qh3 {[%clk 0:02:46.6]} 13... Nf4 {[%clk 0:02:36.6]} 14. Qxh7
{[%clk 0:02:39.8]} 14... Qe7 {[%clk 0:02:31.8]} 15. g3 {[%clk 0:01:52.6]} 15...
Rh8 {[%clk 0:02:25.8]} 16. Qxh8+ {[%clk 0:01:53]} 16... Bxh8 {[%clk 0:02:26.6]}
17. gxf4 {[%clk 0:01:53.9]} 17... exf4 {[%clk 0:02:26.1]} 18. Ne4 {[%clk
0:01:50.3]} 18... Qh4 {[%clk 0:02:18.1]} 19. Bxe6 {[%clk 0:01:44.6]} 19... Ne5
{[%clk 0:02:07.6]} 20. f3 {[%clk 0:01:37.2]} 20... Ke7 {[%clk 0:01:28.3]} 21.
Bb3 {[%clk 0:01:32.9]} 21... d3 {[%clk 0:01:26.7]} 22. Bd2 {[%clk 0:01:29.7]}
22... g5 {[%clk 0:01:21.4]} 23. Rae1 {[%clk 0:01:25.3]} 23... Kd7 {[%clk
0:01:19.3]} 24. Nc5+ {[%clk 0:01:06.2]} 24... Kc6 {[%clk 0:01:18.1]} 25. Ne6
{[%clk 0:01:03.4]} 25... Bf6 {[%clk 0:01:08.6]} 26. Rf2 {[%clk 0:00:57.3]} 26...
Rh8 {[%clk 0:01:05.3]} 27. Nd4+ {[%clk 0:00:46.7]} 27... Kc7 {[%clk 0:01:03.2]}
28. Bd5 {[%clk 0:00:47]} 28... a6 {[%clk 0:00:46.5]} 29. b3 {[%clk 0:00:45.8]}
29... Kb6 {[%clk 0:00:37.3]} 30. Be4 {[%clk 0:00:44.6]} 30... Ka7 {[%clk
0:00:29.8]} 31. a4 {[%clk 0:00:40.5]} 31... g4 {[%clk 0:00:26.6]} 32. Bxf4
{[%clk 0:00:37]} 32... Nxf3+ {[%clk 0:00:21.6]} 33. Nxf3 {[%clk 0:00:32.6]}
33... gxf3 {[%clk 0:00:20.8]} 34. Bg3 {[%clk 0:00:28.4]} 34... Rg8 {[%clk
0:00:20.8]} 35. Bxf3 {[%clk 0:00:17.7]} 35... Bxc3 {[%clk 0:00:17.6]} 36. Re4
{[%clk 0:00:12.6]} 36... Rxg3+ {[%clk 0:00:17.6]} 37. hxg3 {[%clk 0:00:11.3]}
37... Qxg3+ {[%clk 0:00:18.5]} 38. Bg2 {[%clk 0:00:10.3]} 38... d2 {[%clk
0:00:16.8]} 39. Rxd2 {[%clk 0:00:04.9]} 39... Bxd2 {[%clk 0:00:16.7]} 40. Re7
{[%clk 0:00:05.8]} 40... Be3+ {[%clk 0:00:16]} 41. Kh1 {[%clk 0:00:05.3]} 41...
Qh4+ {[%clk 0:00:15.9]} 0-1

[Event "Late-Titled-Tuesday-Blitz-May-28-2024"]
[Site "Chess.com"]
[Date "2024.05.28"]
[Round "11"]
[White "Viktor_Poddubnyi"]
[Black "ploxoi"]
[Result "0-1"]
[WhiteElo "2318"]
[BlackElo "2421"]
[TimeControl "180+1"]
[EndTime "16:05:39 PDT"]
[Termination "ploxoi won on time"]

1. e4 {[%clk 0:02:59.2]} 1... c6 {[%clk 0:03:00.4]} 2. d4 {[%clk 0:02:58.8]}
2... d5 {[%clk 0:03:00.7]} 3. exd5 {[%clk 0:02:59.7]} 3... cxd5 {[%clk
0:03:00.5]} 4. c4 {[%clk 0:02:59.9]} 4... Nf6 {[%clk 0:03:00.4]} 5. Nc3 {[%clk
0:03:00.2]} 5... g6 {[%clk 0:03:01]} 6. Qb3 {[%clk 0:02:58.2]} 6... Bg7 {[%clk
0:02:59.8]} 7. cxd5 {[%clk 0:02:58.6]} 7... O-O {[%clk 0:02:59.8]} 8. Be2 {[%clk
0:02:59.1]} 8... Nbd7 {[%clk 0:03:00.2]} 9. Bf3 {[%clk 0:02:59.5]} 9... Nb6
{[%clk 0:03:00.8]} 10. Nge2 {[%clk 0:02:59.9]} 10... e6 {[%clk 0:02:53.5]} 11.
dxe6 {[%clk 0:02:58.7]} 11... Bxe6 {[%clk 0:02:54.4]} 12. Qd1 {[%clk 0:02:58.7]}
12... Nfd5 {[%clk 0:02:50.5]} 13. O-O {[%clk 0:02:57.7]} 13... Rc8 {[%clk
0:02:48.4]} 14. Nxd5 {[%clk 0:02:45.1]} 14... Bxd5 {[%clk 0:02:47.3]} 15. Bxd5
{[%clk 0:02:41.9]} 15... Qxd5 {[%clk 0:02:45.3]} 16. Be3 {[%clk 0:02:36.5]}
16... Nc4 {[%clk 0:02:42.7]} 17. b3 {[%clk 0:02:32.8]} 17... Nd6 {[%clk
0:02:33.1]} 18. Rc1 {[%clk 0:02:22.5]} 18... Nf5 {[%clk 0:02:32.3]} 19. Qd3
{[%clk 0:02:14.2]} 19... Rfd8 {[%clk 0:02:20.8]} 20. Rxc8 {[%clk 0:01:43.9]}
20... Rxc8 {[%clk 0:02:19.4]} 21. Rd1 {[%clk 0:01:39.9]} 21... Qa5 {[%clk
0:02:13.3]} 22. a4 {[%clk 0:01:35.5]} 22... Rd8 {[%clk 0:02:01.3]} 23. d5 {[%clk
0:01:32.7]} 23... Qb4 {[%clk 0:01:42.3]} 24. Bxa7 {[%clk 0:01:21.6]} 24... Ne7
{[%clk 0:01:26.9]} 25. Qc4 {[%clk 0:00:56.1]} 25... Qa5 {[%clk 0:01:06.4]} 26.
Bc5 {[%clk 0:00:44]} 26... Rxd5 {[%clk 0:00:55.2]} 27. Rc1 {[%clk 0:00:31.1]}
27... Re5 {[%clk 0:00:48.6]} 28. Bd4 {[%clk 0:00:14]} 28... Re6 {[%clk
0:00:45.9]} 29. Bxg7 {[%clk 0:00:11.2]} 29... Kxg7 {[%clk 0:00:45]} 30. g3
{[%clk 0:00:10.7]} 30... Nc6 {[%clk 0:00:40]} 31. Nf4 {[%clk 0:00:09.1]} 31...
Re5 {[%clk 0:00:26]} 32. Qc3 {[%clk 0:00:08.6]} 32... Qxc3 {[%clk 0:00:20.2]}
33. Rxc3 {[%clk 0:00:09.5]} 33... Re1+ {[%clk 0:00:19.4]} 34. Kg2 {[%clk
0:00:09.4]} 34... Nd4 {[%clk 0:00:17.8]} 35. Rc7 {[%clk 0:00:07.8]} 35... Nxb3
{[%clk 0:00:17.1]} 36. Rxb7 {[%clk 0:00:07.6]} 36... Nc5 {[%clk 0:00:17.6]} 37.
Ra7 {[%clk 0:00:06.5]} 37... Ra1 {[%clk 0:00:18]} 38. a5 {[%clk 0:00:06.4]}
38... Nb3 {[%clk 0:00:18.6]} 39. a6 {[%clk 0:00:04.3]} 39... Nc5 {[%clk
0:00:18.5]} 0-1

[Event "Late-Titled-Tuesday-Blitz-May-28-2024"]
[Site "Chess.com"]
[Date "2024.05.28"]
[Round "11"]
[White "momotaro77"]
[Black "IngOscarArdila"]
[Result "1-0"]
[WhiteElo "2523"]
[BlackElo "2309"]
[TimeControl "180+1"]
[EndTime "16:05:44 PDT"]
[Termination "momotaro77 won by resignation"]

1. e4 {[%clk 0:03:00.9]} 1... e5 {[%clk 0:02:32.3]} 2. Nf3 {[%clk 0:02:59.8]}
2... Nf6 {[%clk 0:02:31.9]} 3. Nxe5 {[%clk 0:02:53.7]} 3... d6 {[%clk
0:02:31.3]} 4. Nf3 {[%clk 0:02:53]} 4... Nxe4 {[%clk 0:02:31.9]} 5. Nc3 {[%clk
0:02:53.3]} 5... Nxc3 {[%clk 0:02:32]} 6. dxc3 {[%clk 0:02:53.9]} 6... Be7
{[%clk 0:02:32.4]} 7. Be3 {[%clk 0:02:53.7]} 7... O-O {[%clk 0:02:33.2]} 8. Qd2
{[%clk 0:02:53]} 8... Nd7 {[%clk 0:02:34.1]} 9. O-O-O {[%clk 0:02:52.1]} 9...
Nf6 {[%clk 0:02:35]} 10. Bd3 {[%clk 0:02:49.9]} 10... c5 {[%clk 0:02:35.1]} 11.
c4 {[%clk 0:02:34.4]} 11... b5 {[%clk 0:02:34.8]} 12. Bf4 {[%clk 0:02:26.6]}
12... Bb7 {[%clk 0:02:00.7]} 13. Rhe1 {[%clk 0:02:23.8]} 13... Re8 {[%clk
0:01:58.3]} 14. Bf5 {[%clk 0:02:11]} 14... Bxf3 {[%clk 0:01:49.1]} 15. gxf3
{[%clk 0:02:10.1]} 15... bxc4 {[%clk 0:01:49.6]} 16. Bxd6 {[%clk 0:02:08.5]}
16... Bxd6 {[%clk 0:01:49.6]} 17. Qxd6 {[%clk 0:02:09.4]} 17... Qb6 {[%clk
0:01:45.6]} 18. Qxb6 {[%clk 0:01:11.7]} 18... axb6 {[%clk 0:01:46.5]} 19. a3
{[%clk 0:01:10.9]} 19... Rxe1 {[%clk 0:01:37.8]} 20. Rxe1 {[%clk 0:01:11.8]}
20... Kf8 {[%clk 0:01:37.5]} 21. c3 {[%clk 0:01:10.2]} 21... Rd8 {[%clk
0:01:36.2]} 22. Kc2 {[%clk 0:01:02.7]} 22... g6 {[%clk 0:01:35.9]} 23. Be4
{[%clk 0:01:00.6]} 23... Rd6 {[%clk 0:01:14.8]} 24. Bb7 {[%clk 0:00:47.4]} 24...
Nh5 {[%clk 0:01:07.9]} 25. Ba6 {[%clk 0:00:45.8]} 25... Rf6 {[%clk 0:01:01]} 26.
Re3 {[%clk 0:00:45.1]} 26... Rf4 {[%clk 0:00:59]} 27. Kd2 {[%clk 0:00:38.7]}
27... f5 {[%clk 0:00:16.1]} 28. Ke2 {[%clk 0:00:32.7]} 28... Nf6 {[%clk
0:00:15.6]} 29. Re6 {[%clk 0:00:29.8]} 29... Nd5 {[%clk 0:00:13.6]} 30. Rd6
{[%clk 0:00:28.5]} 30... Ne7 {[%clk 0:00:11.1]} 31. Rxb6 {[%clk 0:00:27.7]}
31... Rh4 {[%clk 0:00:12]} 32. Rb8+ {[%clk 0:00:25.2]} 32... Kf7 {[%clk
0:00:11.9]} 33. a4 {[%clk 0:00:21.5]} 33... Ke6 {[%clk 0:00:10.5]} 34. a5 {[%clk
0:00:20.8]} 34... Kd6 {[%clk 0:00:10.9]} 35. Rb6+ {[%clk 0:00:20.6]} 35... Kc7
{[%clk 0:00:10.8]} 36. Rb7+ {[%clk 0:00:20.6]} 36... Kd6 {[%clk 0:00:11]} 37.
Bb5 {[%clk 0:00:21.1]} 37... Rxh2 {[%clk 0:00:08.5]} 38. a6 {[%clk 0:00:20.1]}
38... Rh1 {[%clk 0:00:08.4]} 39. a7 {[%clk 0:00:19.8]} 39... Ra1 {[%clk
0:00:08.9]} 40. Rb6+ {[%clk 0:00:19.8]} 40... Kc7 {[%clk 0:00:07.9]} 41. Ra6
{[%clk 0:00:20.3]} 41... Ra5 {[%clk 0:00:03.3]} 42. Rxa5 {[%clk 0:00:19.5]} 1-0

[Event "Late-Titled-Tuesday-Blitz-May-28-2024"]
[Site "Chess.com"]
[Date "2024.05.28"]
[Round "11"]
[White "SRob2003"]
[Black "Lennis93"]
[Result "0-1"]
[WhiteElo "2689"]
[BlackElo "2776"]
[TimeControl "180+1"]
[EndTime "16:05:49 PDT"]
[Termination "Lennis93 won by resignation"]

1. c4 {[%clk 0:03:00.9]} 1... e5 {[%clk 0:02:50.9]} 2. g3 {[%clk 0:03:01.7]}
2... Nf6 {[%clk 0:02:48.3]} 3. Bg2 {[%clk 0:03:01.7]} 3... c6 {[%clk 0:02:48.2]}
4. Nf3 {[%clk 0:03:01.2]} 4... e4 {[%clk 0:02:47.9]} 5. Nd4 {[%clk 0:03:01.8]}
5... d5 {[%clk 0:02:48.8]} 6. d3 {[%clk 0:03:02.2]} 6... Bb4+ {[%clk 0:02:47.6]}
7. Bd2 {[%clk 0:03:02.1]} 7... Bc5 {[%clk 0:02:42.7]} 8. Bc3 {[%clk 0:02:57.6]}
8... exd3 {[%clk 0:02:26.9]} 9. Qxd3 {[%clk 0:02:57.5]} 9... O-O {[%clk
0:02:24.4]} 10. Nb3 {[%clk 0:02:55.8]} 10... Bb6 {[%clk 0:02:14.9]} 11. O-O
{[%clk 0:02:55.4]} 11... Re8 {[%clk 0:02:13.1]} 12. cxd5 {[%clk 0:02:54.9]}
12... Nxd5 {[%clk 0:02:12.7]} 13. Bd4 {[%clk 0:02:38.8]} 13... Bg4 {[%clk
0:02:02.4]} 14. e3 {[%clk 0:02:32.8]} 14... Na6 {[%clk 0:01:55.1]} 15. a3 {[%clk
0:02:24]} 15... Be6 {[%clk 0:01:44.5]} 16. N1d2 {[%clk 0:02:18.4]} 16... Qg5
{[%clk 0:01:35.7]} 17. Nf3 {[%clk 0:01:45]} 17... Qh5 {[%clk 0:01:25.7]} 18.
Bxb6 {[%clk 0:01:30.8]} 18... axb6 {[%clk 0:01:24.8]} 19. Nfd4 {[%clk
0:01:30.2]} 19... Bh3 {[%clk 0:01:23.4]} 20. Rfd1 {[%clk 0:01:25.3]} 20... Bxg2
{[%clk 0:01:22.3]} 21. Kxg2 {[%clk 0:01:26.2]} 21... Rad8 {[%clk 0:01:19.5]} 22.
Qf5 {[%clk 0:01:15.3]} 22... Qh6 {[%clk 0:01:18.7]} 23. Qf3 {[%clk 0:00:58]}
23... g6 {[%clk 0:01:16.3]} 24. Ne2 {[%clk 0:00:54.2]} 24... Qg5 {[%clk
0:00:50.2]} 25. Rac1 {[%clk 0:00:53.9]} 25... Nxe3+ {[%clk 0:00:46.7]} 26. fxe3
{[%clk 0:00:50.8]} 26... Rxd1 {[%clk 0:00:47.1]} 27. Rxd1 {[%clk 0:00:46.2]}
27... Rxe3 {[%clk 0:00:47.2]} 28. Qf2 {[%clk 0:00:18.9]} 28... Rxb3 {[%clk
0:00:47.2]} 29. Rd7 {[%clk 0:00:19.6]} 29... f5 {[%clk 0:00:47.3]} 30. Nf4
{[%clk 0:00:18.3]} 30... Qf6 {[%clk 0:00:44.8]} 31. Nd3 {[%clk 0:00:17.3]} 31...
Nc5 {[%clk 0:00:42.1]} 32. Nxc5 {[%clk 0:00:12.3]} 32... Rxb2 {[%clk 0:00:42.1]}
33. Rd8+ {[%clk 0:00:10.7]} 33... Qxd8 {[%clk 0:00:37.6]} 34. Qxb2 {[%clk
0:00:09.9]} 34... Qd5+ {[%clk 0:00:36.9]} 35. Kh3 {[%clk 0:00:07.1]} 35... Qxc5
{[%clk 0:00:37]} 36. Kh4 {[%clk 0:00:05.9]} 36... Qe7+ {[%clk 0:00:34.7]} 37.
Kh3 {[%clk 0:00:06.4]} 37... b5 {[%clk 0:00:34.4]} 38. Qd4 {[%clk 0:00:05.9]}
38... Kf7 {[%clk 0:00:33.1]} 39. Qh8 {[%clk 0:00:06.1]} 39... Ke6 {[%clk
0:00:32.8]} 40. Qc8+ {[%clk 0:00:06.5]} 40... Kd5 {[%clk 0:00:32.5]} 41. Qg8+
{[%clk 0:00:07.2]} 41... Kd4 {[%clk 0:00:27.9]} 42. Qb3 {[%clk 0:00:08.1]} 42...
Qe3 {[%clk 0:00:23.5]} 43. Qb4+ {[%clk 0:00:08.3]} 43... Kd5 {[%clk 0:00:21.4]}
44. Qf8 {[%clk 0:00:03.6]} 44... Qe6 {[%clk 0:00:16.7]} 45. Qb4 {[%clk
0:00:03.5]} 45... f4+ {[%clk 0:00:16.9]} 46. Kg2 {[%clk 0:00:04.2]} 46... fxg3
{[%clk 0:00:17]} 47. hxg3 {[%clk 0:00:04.1]} 47... Qe4+ {[%clk 0:00:17.2]} 48.
Qxe4+ {[%clk 0:00:02.5]} 48... Kxe4 {[%clk 0:00:18.1]} 0-1